fUSD/lending_fUSD_20260217
["ID","MTS","AMOUNT","RATE_DAILY","PERIOD"]
[405819182,1771337438837,-1280.572096,8.219e-05,2]
[405819183,1771337438846,-1442.082396,8.219e-05,2]
[405819184,1771337438856,-1603.592695,8.219e-05,2]
[405819185,1771337438865,-7306.636233,8.219e-05,2]
[405819186,1771337438876,-158.062133,8.219e-05,2]
[405819187,1771337438886,-197.577667,8.219e-05,2]
[405819188,1771337438896,-500.0,8.219e-05,2]
[405819189,1771337438905,-150.0,8.274e-05,2]
[405819190,1771337438915,-500.0,8.274e-05,2]
[405819191,1771337438925,-500.0,8.274e-05,2]
[405819192,1771337438935,-500.0,8.274e-05,2]
[405819193,1771337438945,-500.0,8.274e-05,2]
[405819194,1771337438954,-500.0,8.274e-05,2]
[405819195,1771337438964,-500.33776257,8.274e-05,2]
[405819196,1771337438973,-496.0,8.274e-05,2]
[405819197,1771337438984,-150.0,8.274e-05,2]
[405819198,1771337438994,-500.0,8.274e-05,2]
[405819199,1771337439004,-637.0,8.274e-05,2]
[405819200,1771337439014,-150.37957529,8.274e-05,2]
[405819201,1771337439023,-500.0,8.274e-05,2]
[405819202,1771337439033,-500.0,8.274e-05,2]
[405819203,1771337439043,-244.28993987,8.274e-05,2]
[405819204,1771337439052,-150.0,8.274e-05,2]
[405819205,1771337439062,-150.0,8.274e-05,2]
[405819206,1771337439071,-150.0,8.274e-05,2]
[405819207,1771337439081,-500.0,8.274e-05,2]
[405819208,1771337439092,-500.0,8.274e-05,2]
[405819209,1771337439101,-500.0,8.274e-05,2]
[405819210,1771337439112,-205.12968692,8.274e-05,2]
[405819211,1771337439123,-649.65624143,8.274e-05,2]
[405819212,1771337439133,-150.0,8.274e-05,2]
[405819213,1771337439144,-500.0,8.274e-05,2]
[405819214,1771337439158,-500.0,8.274e-05,2]
[405819215,1771337439168,-500.0,8.274e-05,2]
[405819216,1771337439178,-500.0,8.274e-05,2]
[405819217,1771337439191,-500.0,8.274e-05,2]
[405819218,1771337439200,-150.0,8.329e-05,2]
[405819219,1771337439210,-500.0,8.329e-05,2]
[405819220,1771337439219,-464.38268717,8.329e-05,2]
[405819221,1771337439231,-500.0,8.329e-05,2]
[405819222,1771337439243,-500.0,8.329e-05,2]
[405819223,1771337439252,-500.0,8.329e-05,2]
[405819224,1771337439262,-496.0,8.329e-05,2]
[405819226,1771337439271,-150.0,8.329e-05,2]
[405819227,1771337439281,-475.49905426,8.329e-05,2]
[405819228,1771337439290,-637.0,8.329e-05,2]
[405819229,1771337439299,-152.12850518,8.329e-05,2]
[405819230,1771337439308,-500.0,8.329e-05,2]
[405819231,1771337439318,-150.0,8.329e-05,2]
[405819232,1771337439327,-200.36674187,8.329e-05,2]
[405819233,1771337439337,-200.18645604,8.329e-05,2]
[405819234,1771337439346,-500.0,8.329e-05,2]
[405819235,1771337439356,-500.0,8.329e-05,2]
[405819236,1771337439365,-500.0,8.329e-05,2]
[405819237,1771337439376,-210.76125773,8.329e-05,2]
[405819238,1771337439386,-500.0,8.329e-05,2]
[405819239,1771337439395,-500.0,8.329e-05,2]
[405819240,1771337439404,-500.0,8.329e-05,2]
[405819241,1771337439413,-500.0,8.329e-05,2]
[405819242,1771337439423,-500.0,8.329e-05,2]
[405819243,1771337439432,-250.53819001,8.383e-05,2]
[405819244,1771337439442,-500.0,8.383e-05,2]
[405819245,1771337439451,-500.0,8.383e-05,2]
[405819246,1771337439461,-500.0,8.383e-05,2]
[405819247,1771337439470,-496.0,8.383e-05,2]
[405819248,1771337439479,-150.0,8.383e-05,2]
[405819249,1771337439488,-637.0,8.383e-05,2]
[405819250,1771337439498,-500.0,8.383e-05,2]
[405819251,1771337439507,-200.89245722,8.383e-05,2]
[405819252,1771337439516,-500.0,8.383e-05,2]
[405819253,1771337439526,-500.0,8.383e-05,2]
[405819255,1771337439535,-500.0,8.383e-05,2]
[405819256,1771337439544,-500.0,8.383e-05,2]
[405819257,1771337439554,-500.0,8.383e-05,2]
[405819258,1771337439563,-471.12228144,8.383e-05,2]
[405819259,1771337439573,-500.0,8.383e-05,2]
[405819260,1771337439582,-500.0,8.383e-05,2]
[405819261,1771337439591,-500.0,8.438e-05,2]
[405819263,1771337439600,-500.0,8.438e-05,2]
[405819265,1771337439609,-500.0,8.438e-05,2]
[405819266,1771337439619,-496.0,8.438e-05,2]
[405819269,1771337439628,-150.0,8.438e-05,2]
[405819272,1771337439637,-637.0,8.438e-05,2]
[405819274,1771337439646,-500.0,8.438e-05,2]
[405819276,1771337439655,-153.2248447,8.438e-05,2]
[405819278,1771337439664,-500.0,8.438e-05,2]
[405819279,1771337439674,-500.0,8.438e-05,2]
[405819280,1771337439683,-500.0,8.438e-05,2]
[405819281,1771337439692,-500.0,8.438e-05,2]
[405819282,1771337439701,-500.0,8.438e-05,2]
[405819283,1771337439710,-500.0,8.438e-05,2]
[405819284,1771337439719,-155.81655615,8.493e-05,2]
[405819285,1771337439728,-500.0,8.493e-05,2]
[405819286,1771337439737,-500.0,8.493e-05,2]
[405819287,1771337439747,-496.0,8.493e-05,2]
[405819288,1771337439756,-250.0,8.493e-05,2]
[405819289,1771337439765,-637.0,8.493e-05,2]
[405819290,1771337439774,-500.0,8.493e-05,2]
[405819291,1771337439783,-500.0,8.493e-05,2]
[405819292,1771337439794,-500.0,8.493e-05,2]
[405819293,1771337439803,-500.0,8.493e-05,2]
[405819294,1771337439816,-500.0,8.493e-05,2]
[405819295,1771337439825,-500.0,8.493e-05,2]
[405819296,1771337439835,-500.0,8.493e-05,2]
[405819297,1771337439844,-500.0,8.493e-05,2]
[405819298,1771337439853,-500.0,8.548e-05,2]
[405819299,1771337439863,-500.0,8.548e-05,2]
[405819300,1771337439873,-496.0,8.548e-05,2]
[405819301,1771337439883,-637.0,8.548e-05,2]
[405819302,1771337439893,-630.25617345,8.548e-05,2]
[405819303,1771337439902,-500.0,8.548e-05,2]
[405819304,1771337439911,-382.17209928,8.548e-05,2]
[405819305,1771337439920,-500.0,8.548e-05,2]
[405819306,1771337439929,-500.0,8.548e-05,2]
[405819307,1771337439938,-500.0,8.548e-05,2]
[405819308,1771337439947,-500.0,8.548e-05,2]
[405819309,1771337439957,-361.9355564,8.603e-05,2]
[405819310,1771337439967,-500.0,8.603e-05,2]
[405819311,1771337439976,-496.0,8.603e-05,2]
[405819312,1771337439986,-637.0,8.603e-05,2]
[405819313,1771337439996,-500.0,8.603e-05,2]
[405819314,1771337440006,-500.0,8.603e-05,2]
[405819315,1771337440016,-500.0,8.603e-05,2]
[405819316,1771337440025,-500.0,8.603e-05,2]
[405819317,1771337440035,-500.0,8.603e-05,2]
[405819318,1771337440044,-250.0,8.64e-05,2]
[405819319,1771337440054,-500.0,8.657e-05,2]
[405819320,1771337440063,-496.0,8.657e-05,2]
[405819321,1771337440073,-637.0,8.657e-05,2]
[405819322,1771337440082,-163.51122534,8.657e-05,2]
[405819323,1771337440092,-500.0,8.657e-05,2]
[405819324,1771337440101,-500.0,8.657e-05,2]
[405819325,1771337440111,-500.0,8.657e-05,2]
[405819326,1771337440120,-500.0,8.657e-05,2]
[405819327,1771337440130,-500.0,8.712e-05,2]
[405819329,1771337440139,-496.0,8.712e-05,2]
[405819331,1771337440150,-637.0,8.712e-05,2]
[405819333,1771337440160,-500.0,8.712e-05,2]
[405819335,1771337440168,-642.49812506,8.712e-05,2]
[405819337,1771337440178,-500.0,8.712e-05,2]
[405819339,1771337440188,-500.0,8.712e-05,2]
[405819341,1771337440199,-823.0,8.726e-05,2]
[405819343,1771337440209,-3292.0,8.726e-05,2]
[405819345,1771337440218,-611.76249723,8.767e-05,2]
[405819347,1771337440228,-496.0,8.767e-05,2]
[405819349,1771337440238,-637.0,8.767e-05,2]
[405819351,1771337440247,-500.0,8.767e-05,2]
[405819353,1771337440257,-500.0,8.767e-05,2]
[405819355,1771337440266,-500.0,8.767e-05,2]
[405819357,1771337440275,-500.0,8.767e-05,2]
[405819359,1771337440285,-496.0,8.822e-05,2]
[405819361,1771337440295,-637.0,8.822e-05,2]
[405819363,1771337440304,-500.0,8.822e-05,2]
[405819365,1771337440314,-500.0,8.822e-05,2]
[405819367,1771337440323,-500.0,8.822e-05,2]
[405819369,1771337440332,-1062.34374874,8.824e-05,3]
[405819371,1771337440341,-448865.76129552,8.825e-05,2]
[405819373,1771337440350,-496.0,8.877e-05,2]
[405819375,1771337440360,-637.0,8.877e-05,2]
[405819377,1771337440369,-616.33885806,8.877e-05,2]
[405819379,1771337440378,-500.0,8.877e-05,2]
[405819381,1771337440388,-500.0,8.877e-05,2]
[405819383,1771337440397,-496.0,8.931e-05,2]
[405819385,1771337440407,-637.0,8.931e-05,2]
[405819387,1771337440416,-500.0,8.931e-05,2]
[405819389,1771337440425,-500.0,8.931e-05,2]
[405819391,1771337440434,-496.0,8.986e-05,2]
[405819393,1771337440444,-637.0,8.986e-05,2]
[405819395,1771337440453,-500.0,8.986e-05,2]
[405819397,1771337440462,-500.0,8.986e-05,2]
[405819399,1771337440471,-736.0,9.021e-05,2]
[405819401,1771337440481,-496.0,9.041e-05,2]
[405819403,1771337440490,-637.0,9.041e-05,2]
[405819405,1771337440499,-500.0,9.041e-05,2]
[405819406,1771337440508,-481.0942881,9.041e-05,2]
[405819408,1771337440517,-500.0,9.041e-05,2]
[405819410,1771337440526,-496.0,9.096e-05,2]
[405819412,1771337440535,-637.0,9.096e-05,2]
[405819414,1771337440544,-500.0,9.096e-05,2]
[405819415,1771337440553,-496.0,9.151e-05,2]
[405819418,1771337440563,-637.0,9.151e-05,2]
[405819419,1771337440572,-500.0,9.151e-05,2]
[405819421,1771337440581,-496.0,9.205e-05,2]
[405819423,1771337440591,-637.0,9.205e-05,2]
[405819425,1771337440600,-500.0,9.205e-05,2]
[405819427,1771337440609,-496.0,9.26e-05,2]
[405819429,1771337440619,-637.0,9.26e-05,2]
[405819431,1771337440629,-288.80031656,9.26e-05,2]
[405819433,1771337440638,-496.0,9.315e-05,2]
[405819435,1771337440647,-637.0,9.315e-05,2]
[405819437,1771337440657,-500.0,9.315e-05,2]
[405819439,1771337440666,-496.0,9.37e-05,2]
[405819441,1771337440676,-637.0,9.37e-05,2]
[405819443,1771337440685,-496.0,9.424e-05,2]
[405819445,1771337440694,-637.0,9.424e-05,2]
[405819447,1771337440705,-516.2655769,9.479e-05,2]
[405819449,1771337440714,-649.28296803,9.479e-05,2]
[405819451,1771337440724,-500.0,9.589e-05,2]
[405819453,1771337440734,-1152.0,9.599e-05,2]
[405819455,1771337440743,-4609.0,9.599e-05,2]
[405819457,1771337440753,-13151.945219,9.74e-05,2]
[405819459,1771337440762,-237.0932,9.753e-05,2]
[405819460,1771337440772,-1873.720256,9.753e-05,2]
[405819461,1771337440783,-877.96126,9.753e-05,2]
[405819462,1771337440792,-1239.364668,9.753e-05,2]
[405819463,1771337440802,-5370.580226,9.807e-05,2]
[405819464,1771337440811,-1144.642687,9.837e-05,2]
[405819465,1771337440820,-500.0,9.863e-05,2]
[405819466,1771337440829,-1239.0,9.922e-05,2]
[405819467,1771337440839,-325.22995652,0.0001,2]
[405819468,1771337440848,-194.04699193,0.0001,2]
[405819469,1771337440857,-194.04699193,0.0001,2]
[405819470,1771337440868,-194.04699193,0.0001,2]
[405819471,1771337440879,-151.0,0.0001,2]
[405819472,1771337440888,-151.0,0.0001,2]
[405819473,1771337440898,-151.0,0.0001,2]
[405819474,1771337440907,-151.0,0.0001,2]
[405819475,1771337440916,-151.0,0.0001,2]
[405819476,1771337440926,-151.0,0.0001,2]
[405819477,1771337440935,-151.0,0.0001,2]
[405819478,1771337440944,-151.0,0.0001,2]
[405819479,1771337440954,-151.0,0.0001,2]
[405819480,1771337440963,-151.0,0.0001,2]
[405819481,1771337440972,-151.0,0.0001,2]
[405819482,1771337440982,-151.0,0.0001,2]
[405819483,1771337440992,-151.0,0.0001,2]
[405819484,1771337441001,-151.0,0.0001,2]
[405819485,1771337441010,-151.0,0.0001,2]
[405819486,1771337441020,-151.0,0.0001,2]
[405819487,1771337441030,-151.0,0.0001,2]
[405819488,1771337441039,-151.0,0.0001,2]
[405819489,1771337441048,-151.0,0.0001,2]
[405819490,1771337441058,-151.0,0.0001,2]
[405819491,1771337441068,-151.0,0.0001,2]
[405819492,1771337441078,-151.0,0.0001,2]
[405819493,1771337441087,-151.0,0.0001,2]
[405819494,1771337441096,-151.0,0.0001,2]
[405819495,1771337441106,-151.0,0.0001,2]
[405819496,1771337441115,-151.0,0.0001,2]
[405819497,1771337441127,-151.0,0.0001,2]
[405819498,1771337441136,-267.0,0.0001,3]
[405819499,1771337441148,-1138.2869896,0.0001,2]
[405819500,1771337441158,-500.0,0.00010137,2]
[405819501,1771337441168,-500.0,0.00010411,2]
[405819502,1771337441177,-1561.0,0.00010559,2]
[405819503,1771337441187,-6453.0,0.00010559,2]
[405819504,1771337441197,-500.0,0.00010685,2]
[405819505,1771337441206,-500.0,0.00010779,2]
[405819506,1771337441216,-500.0,0.00010779,2]
[405819507,1771337441226,-500.0,0.00010779,2]
[405819508,1771337441235,-500.0,0.00010779,2]
[405819509,1771337441244,-500.0,0.00010779,2]
[405819510,1771337441253,-501.91469827,0.00010779,2]
[405819511,1771337441263,-500.0,0.00010779,2]
[405819512,1771337441272,-500.0,0.00010779,2]
[405819513,1771337441281,-500.0,0.00010779,2]
[405819514,1771337441291,-500.0,0.00010779,2]
[405819515,1771337441300,-502.71949542,0.00010779,2]
[405819516,1771337441310,-500.0,0.00010779,2]
[405819517,1771337441320,-5987.9156061,0.000109,2]
[405819518,1771337441557,-5987.91560603,0.000109,2]
[405819519,1771337441567,-5987.91560603,0.000109,2]
[405819520,1771337441576,-9419.8,0.00010959,2]
[405819521,1771337441586,-13251.96862491,0.00011099,2]
[405819522,1771337441595,-13251.96862486,0.00011099,2]
[405819523,1771337441604,-13251.96862486,0.00011099,2]
[405819524,1771337441614,-13251.96862486,0.00011099,2]
[405819525,1771337441623,-4404.2853722,0.00011099,2]
[405819526,1771337441632,-4404.28537215,0.00011099,2]
[405819527,1771337441642,-4404.28537215,0.00011099,2]
[405819528,1771337441651,-4404.28537215,0.00011099,2]
[405819529,1771337441660,-506.61106656,0.00011327,2]
[405819530,1771337441670,-1000.99582071,0.00011327,2]
[405819531,1771337441679,-1000.0,0.00011327,2]
[405819532,1771337441688,-1008.54082512,0.00011327,2]
[405819533,1771337441697,-1000.0,0.00011327,2]
[405819534,1771337441706,-162.38741444,0.00011327,2]
[405819535,1771337441716,-1000.0,0.00011327,2]
[405819536,1771337441724,-1000.0,0.00011327,2]
[405819537,1771337441734,-501.42081888,0.00011327,2]
[405819538,1771337441743,-500.0,0.00011327,2]
[405819539,1771337441752,-5987.91560603,0.00011559,2]
[405819540,1771337441761,-267.0,0.00011579,3]
[405819541,1771337441771,-9035.0,0.00011614,2]
[405819542,1771337441780,-316.80458834,0.00011624,2]
[405819543,1771337441789,-4404.28537215,0.00011666,2]
[405819544,1771337441799,-13251.96862486,0.00011735,2]
[405819545,1771337441808,-875.94052204,0.0001175,2]
[405819546,1771337441818,-500.0,0.0001185,2]
[405819547,1771337441827,-500.0,0.0001185,2]
[405819548,1771337441836,-500.0,0.0001185,2]
[405819549,1771337441846,-1500.0,0.00011875,2]
[405819550,1771337441855,-1500.0,0.00011875,2]
[405819551,1771337441865,-368.72151799,0.00011875,2]
[405819552,1771337441875,-1500.0,0.00011875,2]
[405819553,1771337441884,-30336.8,0.00012055,2]
[405819554,1771337441893,-313.19,0.00012087,2]
[405819555,1771337441903,-6444.696272,0.00012259,2]
[405819556,1771337441912,-299.80965345,0.00012423,2]
[405819557,1771337441922,-2000.0,0.00012423,2]
[405819558,1771337441931,-2000.0,0.00012423,2]
[405819559,1771337441940,-296.04761974,0.00012443,2]
[405819560,1771337441949,-7936.0,0.00012776,2]
[405819561,1771337441958,-4404.28537215,0.00012913,2]
[405819562,1771337441967,-1871.87900759,0.00012965,2]
[405819563,1771337441977,-13251.96862486,0.00012968,2]
[405819564,1771337441987,-502.39964348,0.00012971,2]
[405819565,1771337441996,-2500.0,0.00012971,2]
[405819566,1771337442006,-7306.636233,0.00012986,2]
[405819567,1771337442015,-197.577667,0.00013004,2]
[405819568,1771337442025,-4372.013932,0.00013004,2]
[405819569,1771337442034,-2048.576273,0.00013004,2]
[405819570,1771337442044,-4131.215562,0.00013004,2]
[405819571,1771337442053,-953.868906,0.00013116,2]
[405819572,1771337442062,-5987.91560603,0.00013144,2]
[405819573,1771337442072,-267.0,0.00013158,3]
[405819574,1771337442081,-3240.0,0.00013425,2]
[405819575,1771337442091,-1500.0,0.00013519,2]
[405819576,1771337442100,-503.77565291,0.00013698,2]
[405819577,1771337442110,-500.0,0.00013698,2]
[405819578,1771337442119,-500.0,0.00013698,2]
[405819579,1771337442129,-500.0,0.00013698,2]
[405819580,1771337442139,-500.0,0.00013698,2]
[405819581,1771337442152,-500.0,0.00013698,2]
[405819582,1771337442161,-500.0,0.00013698,2]
[405819583,1771337442171,-500.0,0.00013698,2]
[405819584,1771337442181,-500.0,0.00013698,2]
[405819585,1771337442198,-500.0,0.00013698,2]
[405819586,1771337442208,-500.0,0.00013698,2]
[405819587,1771337442218,-500.0,0.00013698,2]
[405819588,1771337442227,-500.0,0.00013698,2]
[405819589,1771337442237,-500.0,0.00013698,2]
[405819590,1771337442246,-500.0,0.00013698,2]
[405819591,1771337442255,-391.46615766,0.00013698,2]
[405819592,1771337442264,-535.55684817,0.00013698,2]
[405819593,1771337442274,-669.78,0.00013698,2]
[405819594,1771337442283,-669.78,0.00013698,2]
[405819595,1771337442292,-669.78,0.00013698,2]
[405819596,1771337442302,-669.78,0.00013698,2]
[405819597,1771337442311,-669.78,0.00013698,2]
[405819598,1771337442321,-669.78,0.00013698,2]
[405819599,1771337442330,-669.78,0.00013698,2]
[405819600,1771337442339,-669.78,0.00013698,2]
[405819601,1771337442349,-669.78,0.00013698,2]
[405819602,1771337442358,-669.78,0.00013698,2]
[405819603,1771337442367,-669.78,0.00013698,2]
[405819604,1771337442377,-669.78,0.00013698,2]
[405819605,1771337442387,-669.78,0.00013698,2]
[405819606,1771337442396,-669.78,0.00013698,2]
[405819607,1771337442406,-669.78,0.00013698,2]
[405819608,1771337442415,-669.78,0.00013698,2]
[405819609,1771337442424,-669.78,0.00013698,2]
[405819610,1771337442434,-500.0,0.00013698,2]
[405819611,1771337442443,-500.0,0.00013698,2]
[405819612,1771337442452,-349.69131006,0.00013698,2]
[405819613,1771337442461,-669.19,0.00013698,2]
[405819614,1771337442470,-669.19,0.00013698,2]
[405819615,1771337442480,-669.19,0.00013698,2]
[405819616,1771337442489,-669.19,0.00013698,2]
[405819617,1771337442499,-669.19,0.00013698,2]
[405819618,1771337442507,-669.19,0.00013698,2]
[405819619,1771337442517,-669.19,0.00013698,2]
[405819620,1771337442526,-669.19,0.00013698,2]
[405819621,1771337442535,-669.19,0.00013698,2]
[405819622,1771337442544,-669.19,0.00013698,2]
[405819623,1771337442554,-669.19,0.00013698,2]
[405819624,1771337442563,-669.19,0.00013698,2]
[405819625,1771337442572,-669.19,0.00013698,2]
[405819626,1771337442581,-669.19,0.00013698,2]
[405819627,1771337442591,-669.19,0.00013698,2]
[405819629,1771337442600,-669.19,0.00013698,2]
[405819630,1771337442610,-669.19,0.00013698,2]
[405819633,1771337442620,-456.05800986,0.00013698,2]
[405819636,1771337442630,-500.0,0.00013698,2]
[405819637,1771337442640,-500.0,0.00013698,2]
[405819639,1771337442650,-500.0,0.00013698,2]
[405819641,1771337442659,-500.0,0.00013698,2]
[405819642,1771337442669,-500.0,0.00013698,2]
[405819643,1771337442678,-500.0,0.00013698,2]
[405819644,1771337442687,-500.0,0.00013698,2]
[405819645,1771337442696,-500.0,0.00013698,2]
[405819646,1771337442705,-500.0,0.00013698,2]
[405819647,1771337442715,-500.0,0.00013698,2]
[405819648,1771337442724,-500.0,0.00013698,2]
[405819649,1771337442733,-465.55674509,0.00013698,2]
[405819650,1771337442743,-500.0,0.00013698,2]
[405819651,1771337442752,-500.0,0.00013698,2]
[405819652,1771337442761,-500.0,0.00013698,2]
[405819653,1771337442771,-529.40507312,0.00013698,2]
[405819654,1771337442780,-500.0,0.00013698,2]
[405819655,1771337442789,-500.0,0.00013698,2]
[405819656,1771337442799,-500.0,0.00013698,2]
[405819657,1771337442808,-500.0,0.00013698,2]
[405819658,1771337442817,-500.0,0.00013698,2]
[405819659,1771337442826,-500.0,0.00013698,2]
[405819660,1771337442836,-307.44205355,0.00013698,2]
[405819661,1771337442845,-500.0,0.00013698,2]
[405819662,1771337442855,-500.0,0.00013698,2]
[405819663,1771337442864,-500.0,0.00013698,2]
[405819664,1771337442874,-500.0,0.00013698,2]
[405819665,1771337442883,-500.0,0.00013698,2]
[405819666,1771337442893,-500.0,0.00013698,2]
[405819667,1771337442902,-500.0,0.00013698,2]
[405819668,1771337442911,-500.0,0.00013698,2]
[405819669,1771337442921,-500.0,0.00013698,2]
[405819670,1771337442931,-500.0,0.00013698,2]
[405819671,1771337442940,-500.0,0.00013698,2]
[405819672,1771337442950,-536.56841648,0.00013698,2]
[405819673,1771337442960,-500.0,0.00013698,2]
[405819674,1771337442969,-500.0,0.00013698,2]
[405819675,1771337442979,-500.0,0.00013698,2]
[405819676,1771337442989,-500.0,0.00013698,2]
[405819677,1771337442999,-500.0,0.00013698,2]
[405819678,1771337443008,-500.0,0.00013698,2]
[405819679,1771337443017,-500.0,0.00013698,2]
[405819680,1771337443027,-500.0,0.00013698,2]
[405819681,1771337443037,-500.0,0.00013698,2]
[405819682,1771337443047,-500.0,0.00013698,2]
[405819683,1771337443057,-500.0,0.00013698,2]
[405819684,1771337443067,-500.0,0.00013698,2]
[405819685,1771337443077,-500.0,0.00013698,2]
[405819686,1771337443086,-500.0,0.00013698,2]
[405819687,1771337443095,-500.0,0.00013698,2]
[405819688,1771337443105,-500.0,0.00013698,2]
[405819689,1771337443115,-500.0,0.00013698,2]
[405819690,1771337443124,-500.0,0.00013698,2]
[405819691,1771337443134,-500.0,0.00013698,2]
[405819692,1771337443144,-500.0,0.00013698,2]
[405819693,1771337443156,-763.46,0.00013698,2]
[405819694,1771337443165,-763.46,0.00013698,2]
[405819695,1771337443175,-763.46,0.00013698,2]
[405819696,1771337443184,-763.46,0.00013698,2]
[405819697,1771337443194,-763.46,0.00013698,2]
[405819698,1771337443206,-500.0,0.00013698,2]
[405819699,1771337443226,-500.0,0.00013698,2]
[405819701,1771337443245,-500.0,0.00013698,2]
[405819703,1771337443255,-500.0,0.00013698,2]
[405819705,1771337443264,-500.0,0.00013698,2]
[405819706,1771337443274,-500.0,0.00013698,2]
[405819707,1771337443283,-500.0,0.00013698,2]
[405819708,1771337443293,-500.0,0.00013698,2]
[405819710,1771337443303,-500.0,0.00013698,2]
[405819712,1771337443312,-500.0,0.00013698,2]
[405819714,1771337443322,-500.0,0.00013698,2]
[405819716,1771337443332,-500.0,0.00013698,2]
[405819718,1771337443341,-500.0,0.00013698,2]
[405819720,1771337443351,-500.0,0.00013698,2]
[405819721,1771337443360,-522.2154278,0.00013698,2]
[405819722,1771337443370,-704.93,0.00013699,2]
[405819723,1771337443380,-500.0,0.00014,2]
[405819724,1771337443390,-669.72717537,0.00014,2]
[405819725,1771337443399,-791.09059454,0.00014,2]
[405819726,1771337443408,-4404.28537215,0.0001416,2]
[405819727,1771337443417,-13251.96862486,0.00014201,2]
[405819728,1771337443426,-704.93,0.00014384,2]
[405819729,1771337443435,-151.0,0.00014634,2]
[405819730,1771337443444,-151.0,0.00014634,2]
[405819731,1771337443453,-1500.0,0.00014672,2]
[405819732,1771337443463,-5987.91560603,0.00014729,2]
[405819733,1771337443472,-267.0,0.00014737,3]
[405819734,1771337443481,-875.94052203,0.00014825,2]
[405819735,1771337443490,-500.0,0.00014958,2]
[405819736,1771337443499,-500.0,0.00014958,2]
[405819737,1771337443508,-500.0,0.00014958,2]
[405819738,1771337443518,-500.0,0.00014958,2]
[405819739,1771337443527,-500.0,0.00014958,2]
[405819740,1771337443536,-216.81997101,0.00015,5]
[405819741,1771337443546,-704.93,0.00015068,2]
[405819742,1771337443555,-170838.0,0.000151,2]
[405819743,1771337443565,-313.19,0.00015134,2]
[405819744,1771337443586,-500.0,0.00015362,2]
[405819745,1771337443607,-500.0,0.00015362,2]
[405819746,1771337443620,-4404.28537215,0.00015406,2]
[405819747,1771337443633,-13251.96862486,0.00015434,2]
[405819748,1771337443644,-306.51422453,0.00015546,2]
[405819749,1771337443655,-178.65,0.00015658,2]
[405819750,1771337443666,-5530.0,0.000157,3]
[405819751,1771337443676,-704.93,0.00015753,2]
[405819752,1771337443686,-669.19,0.00015816,2]
[405819753,1771337443697,-484.11558281,0.00015827,2]
[405819754,1771337443708,-160.0,0.00015854,2]
[405819755,1771337443728,-173.57638878,0.00015854,2]
[405819756,1771337443740,-5000.0,0.0001596,2]
[405819757,1771337443749,-152.85835457,0.00016,2]
[405819759,1771337443761,-151.61045429,0.00016,2]
[405819761,1771337443773,-669.78,0.00016091,2]
[405819763,1771337443783,-776.66,0.00016096,2]
[405819765,1771337443794,-7910.59,0.00016116,2]
[405819767,1771337443804,-173.0767049,0.00016171,2]
[405819769,1771337443815,-150.0,0.000162,2]
[405819771,1771337443827,-484.11558281,0.00016223,2]
[405819773,1771337443838,-5530.0,0.000163,5]
[405819774,1771337443849,-5987.91560603,0.00016315,2]
[405819775,1771337443860,-267.0,0.00016316,3]
[405819776,1771337443870,-832.04,0.0001637,2]
[405819777,1771337443882,-150.0,0.00016425,2]
[405819778,1771337443893,-2045.7,0.00016438,2]
[405819779,1771337443903,-704.93,0.00016438,2]
[405819780,1771337443913,-4318.829,0.00016532,2]
[405819781,1771337443923,-456.53,0.00016532,2]